[Event "Early-Titled-Tuesday-Blitz-July-09-2024"]
[Site "Chess.com"]
[Date "2024.07.09"]
[Round "7"]
[White "BashirliSaadat"]
[Black "osielchesslover2011"]
[Result "1-0"]
[WhiteElo "2404"]
[BlackElo "2195"]
[TimeControl "180+1"]
[EndTime "9:18:22 PDT"]
[Termination "BashirliSaadat won by resignation"]

1. d4 {[%clk 0:03:00.9]} 1... Nf6 {[%clk 0:02:59.7]} 2. c4 {[%clk 0:02:58.8]}
2... g6 {[%clk 0:02:59.9]} 3. e3 {[%clk 0:02:57.8]} 3... Bg7 {[%clk 0:02:59.1]}
4. Nc3 {[%clk 0:02:57]} 4... d6 {[%clk 0:02:59.2]} 5. f4 {[%clk 0:02:56.7]} 5...
Nbd7 {[%clk 0:02:54.2]} 6. Bd3 {[%clk 0:02:56.8]} 6... O-O {[%clk 0:02:53.9]} 7.
Nf3 {[%clk 0:02:57]} 7... e5 {[%clk 0:02:49.3]} 8. fxe5 {[%clk 0:02:56.6]} 8...
dxe5 {[%clk 0:02:49.8]} 9. d5 {[%clk 0:02:51.7]} 9... Nc5 {[%clk 0:02:23.6]} 10.
Bc2 {[%clk 0:02:50.2]} 10... e4 {[%clk 0:02:21]} 11. Nd4 {[%clk 0:02:39.1]}
11... Bg4 {[%clk 0:02:11.3]} 12. Qd2 {[%clk 0:02:37.6]} 12... a5 {[%clk
0:01:41.3]} 13. O-O {[%clk 0:02:36.1]} 13... Qe7 {[%clk 0:01:30.1]} 14. Nce2
{[%clk 0:02:31.8]} 14... Nfd7 {[%clk 0:01:12]} 15. a3 {[%clk 0:02:21.7]} 15...
Ne5 {[%clk 0:01:09.7]} 16. b3 {[%clk 0:02:15.8]} 16... Ncd3 {[%clk 0:00:46.4]}
17. Bxd3 {[%clk 0:02:12.7]} 17... Nxd3 {[%clk 0:00:45]} 18. Ng3 {[%clk
0:02:09.6]} 18... Bd7 {[%clk 0:00:29.2]} 19. Ra2 {[%clk 0:02:05.1]} 19... f5
{[%clk 0:00:27.6]} 20. Nge2 {[%clk 0:02:02.5]} 20... g5 {[%clk 0:00:25.6]} 21.
Bb2 {[%clk 0:01:58.3]} 21... Rae8 {[%clk 0:00:16]} 22. Bc3 {[%clk 0:01:55.8]}
22... f4 {[%clk 0:00:08]} 23. exf4 {[%clk 0:01:53.7]} 23... gxf4 {[%clk
0:00:07.9]} 24. Nxf4 {[%clk 0:01:45.5]} 24... Bh6 {[%clk 0:00:07.3]} 25. g3
{[%clk 0:01:42.8]} 25... Nxf4 {[%clk 0:00:07]} 26. gxf4 {[%clk 0:01:41.7]} 26...
e3 {[%clk 0:00:07.5]} 27. Qg2+ {[%clk 0:01:41.4]} 27... Bg7 {[%clk 0:00:07.1]}
28. Re2 {[%clk 0:01:37.2]} 28... Rf6 {[%clk 0:00:07]} 29. f5 {[%clk 0:01:35.8]}
29... Rg6 {[%clk 0:00:06.5]} 30. fxg6 {[%clk 0:01:35.2]} 1-0

[Event "Early-Titled-Tuesday-Blitz-July-09-2024"]
[Site "Chess.com"]
[Date "2024.07.09"]
[Round "7"]
[White "Statham_01"]
[Black "ACollins05"]
[Result "1-0"]
[WhiteElo "2663"]
[BlackElo "2491"]
[TimeControl "180+1"]
[EndTime "9:18:24 PDT"]
[Termination "Statham_01 won by resignation"]

1. e4 {[%clk 0:03:00.9]} 1... a6 {[%clk 0:02:47]} 2. d4 {[%clk 0:03:00.5]} 2...
b5 {[%clk 0:02:47]} 3. Bd3 {[%clk 0:02:59.8]} 3... Bb7 {[%clk 0:02:47.3]} 4. Ne2
{[%clk 0:03:00.2]} 4... e6 {[%clk 0:02:47.3]} 5. a4 {[%clk 0:02:59.6]} 5... Nf6
{[%clk 0:02:46]} 6. Ng3 {[%clk 0:02:43.7]} 6... b4 {[%clk 0:02:43.1]} 7. c3
{[%clk 0:02:38.8]} 7... c5 {[%clk 0:02:42.4]} 8. Be3 {[%clk 0:02:25.2]} 8... d6
{[%clk 0:02:33.9]} 9. Nd2 {[%clk 0:02:19.5]} 9... Nbd7 {[%clk 0:02:33.5]} 10.
O-O {[%clk 0:02:16.9]} 10... Be7 {[%clk 0:02:32.8]} 11. f4 {[%clk 0:02:09.7]}
11... O-O {[%clk 0:02:31.2]} 12. e5 {[%clk 0:01:59.5]} 12... Nd5 {[%clk
0:02:28.6]} 13. Nc4 {[%clk 0:01:58.2]} 13... Nxe3 {[%clk 0:02:24.2]} 14. Nxe3
{[%clk 0:01:58.1]} 14... bxc3 {[%clk 0:02:24.3]} 15. bxc3 {[%clk 0:01:58.2]}
15... cxd4 {[%clk 0:02:24.5]} 16. cxd4 {[%clk 0:01:55.1]} 16... dxe5 {[%clk
0:02:24.4]} 17. fxe5 {[%clk 0:01:48.9]} 17... Nb6 {[%clk 0:02:21.2]} 18. Bb1
{[%clk 0:01:17.7]} 18... Nd5 {[%clk 0:02:14.8]} 19. Qd3 {[%clk 0:01:11.1]} 19...
g6 {[%clk 0:02:13.6]} 20. Ng4 {[%clk 0:01:09.1]} 20... Rc8 {[%clk 0:02:11.2]}
21. Nh5 {[%clk 0:01:02.8]} 21... Qc7 {[%clk 0:01:59.5]} 22. Qd2 {[%clk
0:00:25.1]} 22... Qc3 {[%clk 0:01:42.1]} 23. Qh6 {[%clk 0:00:21.9]} 23... Qxd4+
{[%clk 0:01:39.2]} 24. Kh1 {[%clk 0:00:19.2]} 24... Qxe5 {[%clk 0:01:19.4]} 25.
Nxe5 {[%clk 0:00:20.1]} 25... Bf6 {[%clk 0:01:19.7]} 26. Rxf6 {[%clk 0:00:13.9]}
1-0

[Event "Early-Titled-Tuesday-Blitz-July-09-2024"]
[Site "Chess.com"]
[Date "2024.07.09"]
[Round "7"]
[White "jasrom"]
[Black "djano"]
[Result "0-1"]
[WhiteElo "2354"]
[BlackElo "2615"]
[TimeControl "180+1"]
[EndTime "9:18:29 PDT"]
[Termination "djano won on time"]

1. e4 {[%clk 0:03:00.9]} 1... e6 {[%clk 0:02:58.9]} 2. d4 {[%clk 0:02:59.7]}
2... d5 {[%clk 0:02:59.2]} 3. Bd3 {[%clk 0:02:59.9]} 3... dxe4 {[%clk
0:02:58.7]} 4. Bxe4 {[%clk 0:03:00.6]} 4... Nf6 {[%clk 0:02:59.3]} 5. Bf3 {[%clk
0:03:00.8]} 5... Be7 {[%clk 0:02:59.4]} 6. Ne2 {[%clk 0:03:00.6]} 6... c5 {[%clk
0:02:56.8]} 7. Be3 {[%clk 0:02:59.1]} 7... Nc6 {[%clk 0:02:49.4]} 8. Nbc3 {[%clk
0:02:41.4]} 8... cxd4 {[%clk 0:02:43.5]} 9. Nxd4 {[%clk 0:02:40.6]} 9... Ne5
{[%clk 0:02:43.9]} 10. Be2 {[%clk 0:02:38.1]} 10... O-O {[%clk 0:02:41.4]} 11.
O-O {[%clk 0:02:37.2]} 11... Bd7 {[%clk 0:02:38.8]} 12. f4 {[%clk 0:02:26.6]}
12... Nc6 {[%clk 0:02:36.4]} 13. Bf3 {[%clk 0:02:24.5]} 13... Rc8 {[%clk
0:02:34]} 14. Nxc6 {[%clk 0:02:17.3]} 14... bxc6 {[%clk 0:02:27.3]} 15. Qe2
{[%clk 0:01:44]} 15... Nd5 {[%clk 0:02:18.4]} 16. Nxd5 {[%clk 0:01:41.5]} 16...
cxd5 {[%clk 0:02:19.3]} 17. c3 {[%clk 0:01:18]} 17... Qa5 {[%clk 0:02:14.8]} 18.
Kh1 {[%clk 0:01:12.4]} 18... Bb5 {[%clk 0:02:14.4]} 19. Qf2 {[%clk 0:01:04.5]}
19... Bxf1 {[%clk 0:02:13.6]} 20. Qxf1 {[%clk 0:01:03.1]} 20... Rb8 {[%clk
0:02:05.5]} 21. Qe2 {[%clk 0:00:50.6]} 21... Qb5 {[%clk 0:02:01]} 22. Qxb5
{[%clk 0:00:49.8]} 22... Rxb5 {[%clk 0:02:01.9]} 23. b4 {[%clk 0:00:50.3]} 23...
Bf6 {[%clk 0:01:58.4]} 24. Rc1 {[%clk 0:00:40]} 24... Rc8 {[%clk 0:01:54.5]} 25.
a4 {[%clk 0:00:34.1]} 25... Rb7 {[%clk 0:01:49.3]} 26. Bc5 {[%clk 0:00:32.8]}
26... a5 {[%clk 0:01:42.8]} 27. g4 {[%clk 0:00:12.2]} 27... axb4 {[%clk
0:01:39.5]} 28. cxb4 {[%clk 0:00:12.5]} 28... Rxb4 {[%clk 0:01:34.9]} 29. g5
{[%clk 0:00:07]} 29... Be7 {[%clk 0:01:28.6]} 0-1

[Event "Early-Titled-Tuesday-Blitz-July-09-2024"]
[Site "Chess.com"]
[Date "2024.07.09"]
[Round "7"]
[White "EvilMorty23"]
[Black "LewAnatol"]
[Result "1-0"]
[WhiteElo "2397"]
[BlackElo "2183"]
[TimeControl "180+1"]
[EndTime "9:18:30 PDT"]
[Termination "EvilMorty23 won on time"]

1. e4 {[%clk 0:03:00.9]} 1... c5 {[%clk 0:03:00.1]} 2. Nf3 {[%clk 0:02:58.5]}
2... e6 {[%clk 0:03:00.4]} 3. c3 {[%clk 0:02:57.9]} 3... Nf6 {[%clk 0:02:59.6]}
4. e5 {[%clk 0:02:58.3]} 4... Nd5 {[%clk 0:03:00.1]} 5. d4 {[%clk 0:02:58.9]}
5... cxd4 {[%clk 0:03:00.2]} 6. cxd4 {[%clk 0:02:59.8]} 6... d6 {[%clk
0:02:59.7]} 7. Bc4 {[%clk 0:02:59.8]} 7... Nb6 {[%clk 0:02:58.9]} 8. Bd3 {[%clk
0:02:59.3]} 8... Nc6 {[%clk 0:02:56.9]} 9. O-O {[%clk 0:02:59.3]} 9... Nd5
{[%clk 0:02:38.9]} 10. Nc3 {[%clk 0:02:55.4]} 10... Nxc3 {[%clk 0:02:38.3]} 11.
bxc3 {[%clk 0:02:54.6]} 11... Qc7 {[%clk 0:02:38.6]} 12. Bf4 {[%clk 0:02:51.3]}
12... dxe5 {[%clk 0:02:33.5]} 13. Nxe5 {[%clk 0:02:50.2]} 13... Nxe5 {[%clk
0:02:32.9]} 14. Bxe5 {[%clk 0:02:49.8]} 14... Bd6 {[%clk 0:02:31.5]} 15. Bxg7
{[%clk 0:02:41.3]} 15... Rg8 {[%clk 0:02:28.9]} 16. Bf6 {[%clk 0:02:38.9]} 16...
Bxh2+ {[%clk 0:02:25.5]} 17. Kh1 {[%clk 0:02:37.7]} 17... Qf4 {[%clk 0:02:14.5]}
18. Bb5+ {[%clk 0:02:19.4]} 18... Kf8 {[%clk 0:02:03.3]} 19. Be5 {[%clk
0:02:19.4]} 19... Qg5 {[%clk 0:01:56.7]} 20. g3 {[%clk 0:02:09.5]} 20... f6
{[%clk 0:00:51.4]} 21. Bd6+ {[%clk 0:01:51.4]} 21... Kf7 {[%clk 0:00:51]} 22.
Bc4 {[%clk 0:01:51.6]} 22... Qh6 {[%clk 0:00:47]} 23. Kg2 {[%clk 0:01:47.2]}
23... b5 {[%clk 0:00:45.8]} 24. Qf3 {[%clk 0:01:37]} 24... bxc4 {[%clk
0:00:29.6]} 25. Qxa8 {[%clk 0:01:36.7]} 25... e5 {[%clk 0:00:06.8]} 26. Qxa7+
{[%clk 0:01:36.6]} 26... Kg6 {[%clk 0:00:05.1]} 27. Rh1 {[%clk 0:01:29.3]} 27...
Qh3+ {[%clk 0:00:04.4]} 28. Kf3 {[%clk 0:01:29.5]} 28... Bg4+ {[%clk 0:00:01.7]}
29. Ke3 {[%clk 0:01:28.6]} 29... Qh6+ {[%clk 0:00:01.7]} 30. f4 {[%clk
0:01:21.3]} 1-0

[Event "Early-Titled-Tuesday-Blitz-July-09-2024"]
[Site "Chess.com"]
[Date "2024.07.09"]
[Round "7"]
[White "santig8"]
[Black "Navyblue1"]
[Result "1-0"]
[WhiteElo "2283"]
[BlackElo "2116"]
[TimeControl "180+1"]
[EndTime "9:18:31 PDT"]
[Termination "santig8 won by resignation"]

1. e4 {[%clk 0:03:00.9]} 1... c5 {[%clk 0:03:00.4]} 2. d4 {[%clk 0:03:00.5]}
2... cxd4 {[%clk 0:02:59.5]} 3. c3 {[%clk 0:03:00.9]} 3... Nf6 {[%clk
0:02:58.2]} 4. e5 {[%clk 0:03:00.4]} 4... Nd5 {[%clk 0:02:55.8]} 5. cxd4 {[%clk
0:03:01.3]} 5... d6 {[%clk 0:02:55.5]} 6. Nf3 {[%clk 0:02:52.2]} 6... Nc6 {[%clk
0:02:50.8]} 7. Bc4 {[%clk 0:02:50.6]} 7... Nb6 {[%clk 0:02:50.4]} 8. Bb5 {[%clk
0:02:49.7]} 8... dxe5 {[%clk 0:02:47.7]} 9. Nxe5 {[%clk 0:02:44.4]} 9... Bd7
{[%clk 0:02:46.2]} 10. Bxc6 {[%clk 0:02:43.6]} 10... Bxc6 {[%clk 0:02:42.5]} 11.
O-O {[%clk 0:02:42.4]} 11... Bd5 {[%clk 0:02:37.8]} 12. Nc3 {[%clk 0:02:41.2]}
12... e6 {[%clk 0:02:35.5]} 13. a4 {[%clk 0:02:37.8]} 13... Be7 {[%clk
0:02:25.8]} 14. a5 {[%clk 0:02:37.3]} 14... Nc8 {[%clk 0:02:17.7]} 15. Nxd5
{[%clk 0:02:34.4]} 15... Qxd5 {[%clk 0:02:14.9]} 16. Qa4+ {[%clk 0:02:33.9]}
16... Kf8 {[%clk 0:02:05.8]} 17. Nd7+ {[%clk 0:01:59.6]} 17... Kg8 {[%clk
0:02:04.7]} 18. Bf4 {[%clk 0:01:37]} 18... f6 {[%clk 0:01:58.1]} 19. Nc5 {[%clk
0:01:34.3]} 19... Kf7 {[%clk 0:01:57.5]} 20. Rfe1 {[%clk 0:01:30.3]} 20... Bxc5
{[%clk 0:01:57.3]} 21. dxc5 {[%clk 0:01:28.2]} 21... Ne7 {[%clk 0:01:21.6]} 22.
Rad1 {[%clk 0:01:25.7]} 22... Qc6 {[%clk 0:01:21.6]} 23. Qb3 {[%clk 0:01:18.4]}
23... Nd5 {[%clk 0:01:18]} 24. Bd6 {[%clk 0:00:55.5]} 24... Rhe8 {[%clk
0:01:14.6]} 25. f4 {[%clk 0:00:49.3]} 25... g6 {[%clk 0:01:11]} 26. Qh3 {[%clk
0:00:45.4]} 26... Kg7 {[%clk 0:01:06.3]} 27. Rxe6 {[%clk 0:00:44.2]} 27... Rxe6
{[%clk 0:00:56.1]} 28. Qxe6 {[%clk 0:00:45.1]} 28... Re8 {[%clk 0:00:52]} 29.
Qxd5 {[%clk 0:00:38.5]} 29... Re1+ {[%clk 0:00:51.6]} 30. Kf2 {[%clk 0:00:34.3]}
30... Qxd5 {[%clk 0:00:49]} 1-0

[Event "Early-Titled-Tuesday-Blitz-July-09-2024"]
[Site "Chess.com"]
[Date "2024.07.09"]
[Round "7"]
[White "edgarhay012"]
[Black "Antek_Radzimski"]
[Result "0-1"]
[WhiteElo "2687"]
[BlackElo "2582"]
[TimeControl "180+1"]
[EndTime "9:18:36 PDT"]
[Termination "Antek_Radzimski won by checkmate"]

1. e4 {[%clk 0:03:00.9]} 1... e5 {[%clk 0:02:59.7]} 2. Nf3 {[%clk 0:03:00.6]}
2... Nc6 {[%clk 0:03:00]} 3. Bb5 {[%clk 0:03:01.1]} 3... a6 {[%clk 0:03:00.6]}
4. Ba4 {[%clk 0:03:01.3]} 4... d6 {[%clk 0:03:01.3]} 5. d4 {[%clk 0:02:56]} 5...
b5 {[%clk 0:02:57.2]} 6. Bb3 {[%clk 0:02:55.5]} 6... Nxd4 {[%clk 0:02:57.4]} 7.
Nxd4 {[%clk 0:02:54.8]} 7... exd4 {[%clk 0:02:58.1]} 8. Bd5 {[%clk 0:02:29.7]}
8... Rb8 {[%clk 0:02:56.4]} 9. Qxd4 {[%clk 0:02:28.3]} 9... Nf6 {[%clk 0:02:57]}
10. O-O {[%clk 0:02:25.1]} 10... Be7 {[%clk 0:02:57.2]} 11. a4 {[%clk
0:02:23.4]} 11... O-O {[%clk 0:02:55.2]} 12. axb5 {[%clk 0:02:23]} 12... axb5
{[%clk 0:02:55]} 13. Nc3 {[%clk 0:02:13.7]} 13... c5 {[%clk 0:02:54.9]} 14. Qd1
{[%clk 0:02:12.1]} 14... b4 {[%clk 0:02:55]} 15. Ne2 {[%clk 0:02:10]} 15... Bb7
{[%clk 0:02:51.5]} 16. Bxb7 {[%clk 0:02:06]} 16... Rxb7 {[%clk 0:02:52.4]} 17.
f3 {[%clk 0:02:06.1]} 17... Qc7 {[%clk 0:02:44.9]} 18. Nf4 {[%clk 0:02:04.4]}
18... Rd8 {[%clk 0:02:39.1]} 19. Nd5 {[%clk 0:02:04]} 19... Nxd5 {[%clk
0:02:38.7]} 20. Qxd5 {[%clk 0:02:04.9]} 20... Bf6 {[%clk 0:02:36.8]} 21. Ra6
{[%clk 0:02:01.3]} 21... c4 {[%clk 0:02:26.3]} 22. Rc6 {[%clk 0:02:00.1]} 22...
Qb8 {[%clk 0:02:16.6]} 23. Rxc4 {[%clk 0:01:58]} 23... Rb5 {[%clk 0:02:15]} 24.
Qc6 {[%clk 0:01:46.2]} 24... d5 {[%clk 0:02:11.3]} 25. exd5 {[%clk 0:01:44.7]}
25... Rbxd5 {[%clk 0:02:11.4]} 26. Bf4 {[%clk 0:01:44.6]} 26... Qa7+ {[%clk
0:02:05.6]} 27. Kh1 {[%clk 0:01:30.8]} 27... Qf2 {[%clk 0:01:59.3]} 28. h3
{[%clk 0:00:50.4]} 28... Qxf1+ {[%clk 0:01:54.4]} 29. Kh2 {[%clk 0:00:51.3]}
29... Rd4 {[%clk 0:01:15.6]} 30. Bc7 {[%clk 0:00:18.4]} 30... Qxc4 {[%clk
0:01:11.5]} 31. Qa4 {[%clk 0:00:19]} 31... Qxc7+ {[%clk 0:01:11.1]} 32. f4
{[%clk 0:00:19.3]} 32... Qxf4+ {[%clk 0:01:10.7]} 33. g3 {[%clk 0:00:19.5]}
33... Rd2+ {[%clk 0:01:10.9]} 34. Kh1 {[%clk 0:00:20.4]} 34... Rd1+ {[%clk
0:01:11.8]} 35. Kg2 {[%clk 0:00:17.5]} 35... R8d2# {[%clk 0:01:12.7]} 0-1

[Event "Early-Titled-Tuesday-Blitz-July-09-2024"]
[Site "Chess.com"]
[Date "2024.07.09"]
[Round "7"]
[White "Rakhmanov_Aleksandr"]
[Black "mishanick"]
[Result "0-1"]
[WhiteElo "2857"]
[BlackElo "3090"]
[TimeControl "180+1"]
[EndTime "9:18:37 PDT"]
[Termination "mishanick won on time"]

1. c4 {[%clk 0:03:00.9]} 1... e6 {[%clk 0:02:57.9]} 2. Nc3 {[%clk 0:02:59.7]}
2... d5 {[%clk 0:02:58.5]} 3. d4 {[%clk 0:02:59.4]} 3... Nf6 {[%clk 0:02:58.5]}
4. cxd5 {[%clk 0:02:58]} 4... exd5 {[%clk 0:02:58.9]} 5. Bg5 {[%clk 0:02:58.5]}
5... c6 {[%clk 0:02:58.5]} 6. e3 {[%clk 0:02:58.9]} 6... Be7 {[%clk 0:02:54.7]}
7. Bd3 {[%clk 0:02:58.7]} 7... Nbd7 {[%clk 0:02:55.4]} 8. h3 {[%clk 0:02:58.2]}
8... Nf8 {[%clk 0:02:54.4]} 9. Nf3 {[%clk 0:02:48.2]} 9... Ne6 {[%clk 0:02:54]}
10. Bh4 {[%clk 0:02:45.6]} 10... O-O {[%clk 0:02:54.5]} 11. O-O {[%clk
0:02:42.4]} 11... Re8 {[%clk 0:02:50]} 12. Qc2 {[%clk 0:02:37.3]} 12... h6
{[%clk 0:02:50]} 13. Bg3 {[%clk 0:02:14.3]} 13... Bd6 {[%clk 0:02:36.8]} 14. Ne5
{[%clk 0:02:13.6]} 14... Ng5 {[%clk 0:02:37]} 15. f3 {[%clk 0:01:29.2]} 15...
Qe7 {[%clk 0:02:36.6]} 16. Rae1 {[%clk 0:01:24.6]} 16... Be6 {[%clk 0:02:20.5]}
17. Bh4 {[%clk 0:01:13.3]} 17... Nd7 {[%clk 0:02:08.7]} 18. Bg3 {[%clk 0:00:42]}
18... Nf6 {[%clk 0:02:02.1]} 19. Bh4 {[%clk 0:00:31.8]} 19... Qc7 {[%clk
0:02:00.9]} 20. f4 {[%clk 0:00:11.8]} 20... Nge4 {[%clk 0:02:00.5]} 21. Bxf6
{[%clk 0:00:11.3]} 21... Nxf6 {[%clk 0:01:59.1]} 22. g4 {[%clk 0:00:11.6]} 22...
Ne4 {[%clk 0:01:56.9]} 23. Nxe4 {[%clk 0:00:10.8]} 23... dxe4 {[%clk 0:01:57.7]}
24. Bxe4 {[%clk 0:00:10.9]} 24... f6 {[%clk 0:01:38]} 25. Ng6 {[%clk 0:00:09]}
25... Bxa2 {[%clk 0:01:34.3]} 26. b3 {[%clk 0:00:04.2]} 26... Qf7 {[%clk
0:01:26]} 27. Qxa2 {[%clk 0:00:01.9]} 27... Rxe4 {[%clk 0:01:26.4]} 28. f5
{[%clk 0:00:01.6]} 28... Rae8 {[%clk 0:01:25]} 29. Rf3 {[%clk 0:00:01]} 29...
Rxd4 {[%clk 0:01:21.2]} 30. Qxa7 {[%clk 0:00:01]} 30... Rd2 {[%clk 0:01:19.2]}
0-1

[Event "Early-Titled-Tuesday-Blitz-July-09-2024"]
[Site "Chess.com"]
[Date "2024.07.09"]
[Round "7"]
[White "sergeikim"]
[Black "AsaHoffmann"]
[Result "1-0"]
[WhiteElo "2593"]
[BlackElo "2396"]
[TimeControl "180+1"]
[EndTime "9:18:38 PDT"]
[Termination "sergeikim won by resignation"]

1. d4 {[%clk 0:03:00.9]} 1... Nf6 {[%clk 0:02:58.5]} 2. c4 {[%clk 0:03:00.9]}
2... c5 {[%clk 0:02:57.5]} 3. d5 {[%clk 0:03:00.3]} 3... e5 {[%clk 0:02:57.3]}
4. Nc3 {[%clk 0:03:00.2]} 4... d6 {[%clk 0:02:57.3]} 5. e4 {[%clk 0:03:00.3]}
5... Be7 {[%clk 0:02:56.6]} 6. g3 {[%clk 0:03:00.1]} 6... O-O {[%clk 0:02:55.8]}
7. Bg2 {[%clk 0:02:59.5]} 7... Na6 {[%clk 0:02:55.6]} 8. Nf3 {[%clk 0:02:58.7]}
8... Ne8 {[%clk 0:02:52.3]} 9. O-O {[%clk 0:02:57]} 9... Nec7 {[%clk 0:02:48.9]}
10. Ne1 {[%clk 0:02:52.6]} 10... Bd7 {[%clk 0:02:44.5]} 11. a4 {[%clk
0:02:46.6]} 11... Nb4 {[%clk 0:02:44]} 12. Nd3 {[%clk 0:02:40.3]} 12... a5
{[%clk 0:02:41.4]} 13. Nb5 {[%clk 0:02:33.5]} 13... Bxb5 {[%clk 0:02:32.8]} 14.
axb5 {[%clk 0:02:33.2]} 14... b6 {[%clk 0:02:29.2]} 15. h4 {[%clk 0:02:26.4]}
15... g6 {[%clk 0:02:21.4]} 16. Bh6 {[%clk 0:02:20.3]} 16... Re8 {[%clk
0:02:19.9]} 17. Nxb4 {[%clk 0:02:15.9]} 17... axb4 {[%clk 0:02:18.3]} 18. Qd2
{[%clk 0:02:16]} 18... Bf8 {[%clk 0:02:12.8]} 19. Bg5 {[%clk 0:02:14]} 19... Be7
{[%clk 0:02:09.6]} 20. Be3 {[%clk 0:02:13.1]} 20... Qd7 {[%clk 0:02:01.5]} 21.
Kh2 {[%clk 0:02:11.5]} 21... Rxa1 {[%clk 0:02:00.3]} 22. Rxa1 {[%clk 0:02:10.9]}
22... Ra8 {[%clk 0:01:59.9]} 23. Qd1 {[%clk 0:02:10.6]} 23... Rxa1 {[%clk
0:01:52.6]} 24. Qxa1 {[%clk 0:02:10.2]} 24... Ne8 {[%clk 0:01:52.4]} 25. Bh3
{[%clk 0:02:06.3]} 25... Qc7 {[%clk 0:01:41.9]} 26. Qa8 {[%clk 0:02:02.7]} 26...
Bd8 {[%clk 0:01:38]} 27. Bg5 {[%clk 0:01:56]} 27... f6 {[%clk 0:01:30.2]} 28.
Bh6 {[%clk 0:01:49.5]} 28... Kf7 {[%clk 0:01:26.6]} 29. Be6+ {[%clk 0:01:39.2]}
29... Ke7 {[%clk 0:01:26.4]} 30. Bg8 {[%clk 0:01:35.1]} 30... Qd7 {[%clk
0:01:14.9]} 31. f3 {[%clk 0:01:28.5]} 31... Nc7 {[%clk 0:01:12.3]} 32. Qc6
{[%clk 0:01:23.8]} 32... Ke8 {[%clk 0:00:55.9]} 33. Bxh7 {[%clk 0:01:19]} 33...
g5 {[%clk 0:00:50.9]} 34. h5 {[%clk 0:01:08.7]} 34... Ke7 {[%clk 0:00:43.4]} 35.
Bg6 {[%clk 0:01:04]} 35... Ne8 {[%clk 0:00:34.3]} 36. Bf8+ {[%clk 0:01:00.5]}
1-0

[Event "Early-Titled-Tuesday-Blitz-July-09-2024"]
[Site "Chess.com"]
[Date "2024.07.09"]
[Round "7"]
[White "FREDERICKtheMATE"]
[Black "GrumbleBruno"]
[Result "1-0"]
[WhiteElo "2748"]
[BlackElo "2516"]
[TimeControl "180+1"]
[EndTime "9:18:39 PDT"]
[Termination "FREDERICKtheMATE won by resignation"]

1. e4 {[%clk 0:03:00.9]} 1... e6 {[%clk 0:02:58.9]} 2. d4 {[%clk 0:02:58]} 2...
d5 {[%clk 0:02:59]} 3. Bd3 {[%clk 0:02:58.4]} 3... dxe4 {[%clk 0:02:56]} 4. Bxe4
{[%clk 0:02:59.3]} 4... Nf6 {[%clk 0:02:56.2]} 5. Bf3 {[%clk 0:02:58]} 5... Nbd7
{[%clk 0:02:50.5]} 6. Nc3 {[%clk 0:02:53.4]} 6... Bd6 {[%clk 0:02:47.8]} 7. Nb5
{[%clk 0:02:48.6]} 7... O-O {[%clk 0:02:47.3]} 8. Nxd6 {[%clk 0:02:48.3]} 8...
cxd6 {[%clk 0:02:47.7]} 9. Ne2 {[%clk 0:02:48.2]} 9... Rb8 {[%clk 0:02:41.1]}
10. O-O {[%clk 0:02:45.2]} 10... b6 {[%clk 0:02:41]} 11. Nc3 {[%clk 0:02:33.9]}
11... Bb7 {[%clk 0:02:38.2]} 12. Nb5 {[%clk 0:02:30]} 12... d5 {[%clk
0:02:16.7]} 13. Nxa7 {[%clk 0:02:24.1]} 13... e5 {[%clk 0:02:15.4]} 14. Nb5
{[%clk 0:02:17.5]} 14... Re8 {[%clk 0:02:14.4]} 15. Be2 {[%clk 0:01:59.6]} 15...
Qe7 {[%clk 0:02:09]} 16. dxe5 {[%clk 0:01:53.8]} 16... Nxe5 {[%clk 0:02:09.1]}
17. Nd4 {[%clk 0:01:52.9]} 17... Rbc8 {[%clk 0:02:05.3]} 18. c3 {[%clk
0:01:49.3]} 18... Ne4 {[%clk 0:01:46.7]} 19. Bf4 {[%clk 0:01:38.6]} 19... Ng6
{[%clk 0:01:45.3]} 20. Be3 {[%clk 0:01:35.6]} 20... Nc5 {[%clk 0:01:22.9]} 21.
Bb5 {[%clk 0:01:27.6]} 21... Red8 {[%clk 0:01:16.2]} 22. Qh5 {[%clk 0:01:21.9]}
22... f6 {[%clk 0:01:04.3]} 23. Rae1 {[%clk 0:01:15.8]} 23... Qf7 {[%clk
0:01:03.8]} 24. Re2 {[%clk 0:01:04.2]} 24... Ne4 {[%clk 0:00:52.9]} 25. f3
{[%clk 0:00:58.7]} 25... Nd6 {[%clk 0:00:51.1]} 26. Bd3 {[%clk 0:00:58.3]} 26...
Re8 {[%clk 0:00:47.8]} 27. Rfe1 {[%clk 0:00:58.2]} 27... Nc4 {[%clk 0:00:45.9]}
28. Bc1 {[%clk 0:00:56.8]} 28... Rxe2 {[%clk 0:00:44.1]} 29. Rxe2 {[%clk
0:00:57.7]} 29... Re8 {[%clk 0:00:43.8]} 30. Qf5 {[%clk 0:00:53.6]} 30... Bc8
{[%clk 0:00:40.9]} 31. Rxe8+ {[%clk 0:00:48.6]} 31... Qxe8 {[%clk 0:00:40.5]}
32. Qxd5+ {[%clk 0:00:47.4]} 1-0